Workbook

Sheet Choose SIC and Region
B1: Rates and SIC Codes
A2: California PPO Rate Area Definitions
A3: Region 1 | D3: Region 2
A4: ZIP Codes 900–908, 910–928, 930, 932–933, 935–938, 952–953, and 956–958. The following ZIP Codes are excluded from Region 1 but included in Region 2: 92222, 92227, 92231–92233, 92243–92244, 92249–92251, 92257, 92259, 92266, 92273, 92275, 92281, 92283, 92328, 92384, 92389, 93013, 93014, 93067, 93512–93515, 93517, 93522, 93526, 93529–93530, 93541–93542, 93545–93546, 93549, 95646, 95724, 95728 | D4: ZIP Codes: 931, 934, 939–951, 954–955, 959–961, 92222, 92227, 92231–92233, 92243–92244, 92249–92251, 92257, 92259, 92266, 92273, 92275, 92281, 92283, 92328, 92384, 92389, 93013–93014, 93067, 93512–93515, 93517, 93522, 93526, 93529–93530, 93541–93542, 93545–93546, 93549, 95646, 95724, 95728
A6: California DHMO Rate Area Definitions
A7: Region 1 and Region 2 | D7: Region 3
A8: Los Angeles | D8: Alameda | E8: Mariposa | F8: San Francisco
A9: Orange | D9: Contra Costa | E9: Riverside | F9: San Mateo
D10: Fresno | E10: San Bernardino | F10: Santa Clara
D11: Kern | E11: San Diego | F11: Ventura
A12: Region 4 | D12: Region 5
A13: Alpine | B13: Marin | C13: San Luis Obispo | D13: Butte | E13: Mendocino | F13: Siskiyou
A14: Amador | B14: Merced | C14: Santa Barbara | D14: Del Norte | E14: Modoc | F14: Sutter
A15: Calaveras | B15: Monterey | C15: Sierra | D15: Glenn | E15: Mono | F15: Tehama
A16: Colusa | B16: Napa | C16: Solano | D16: Humboldt | E16: San Benito | F16: Trinity
A17: El Dorado | B17: Nevada | C17: Sonoma | D17: Lake | E17: Santa Cruz | F17: Yuba
A18: Imperial | B18: Placer | C18: Stanislaus | D18: Lassen | E18: Shasta
A19: Inyo | B19: Plumas | C19: Tuolumne
A20: Kings | B20: Sacramento | C20: Tulare
A21: Madera | B21: San Joaquin | C21: Yolo
A23: SIC Level Classifications
A24: Level 1 Eligible Industries
A25: Advertising (except Misc., not classified 7319) | C25: 7311-7313 | D25: Hospitals | F25: 8062-8069
A26: Agriculture, Forestry, Fishing (except seasonal employees) | C26: 0100-0999 | D26: Independent Auto Repair and Services | F26: 7532-7599
A27: Auto Rental Agencies | C27: 7513-7519 | D27: Laundry/Garment Service/Show Repair Services | F27: 7211-7219, 7251
A28: Automobile Parking Services | C28: 7521 | D28: Manufacturing (except Jewelry Manufacturing) | F28: 2000-2699
A29: Building Maintenance / Equipment Rental | C29: 7349-7359 | D29: Manufacturing (Chemicals, Allied and Other) | F29: 2810-3999
A30: Collection Agencies and Credit Reporting Services | C30: 7322-7323 | D30: Mining, Oil and Gas Extraction | F30: 1000-1499
A31: Communication (Radio, Telephone, TV/Radio Broadcasting) | C31: 4800-4899 | D31: Miscellaneous Repair (Welding, etc) | F31: 7692-7699
A32: Community Services Organizations / Social Services | C32: 8300-8499 | D32: New Syndicates | F32: 7383
A33: Computer Programming and Other Computer Services | C33: 7371-7379 | D33: Photofinishing Labs | F33: 7384
A34: Construction Contractors | C34: 1500-1799 | D34: Printing and Publishing | F34: 2700 - 2799
A35: Direct Mailing, Reproduction, Secretarial Services | C35: 7331-7338 | D35: Public Administration (Cities, Counties, Police, etc) | F35: 9000-9720, 9722-9998
A36: Disinfecting and Pest Control Services | C36: 7342 | D36: Retail | F36: 5200-5510, 5610-5699, 5712-5736, 5912-5999,
A37: Government Funded Groups | C37: 8300-8499 | D37: Public and Private Schools (Elmentary and High School) | F37: 8200-8299
A38: Electrical Repair (Radio, TV, A/C, Refrigerator) | C38: 7622-7629 | D38: Security Systems, Detectives, Armored Car | F38: 7381-7382
A39: Engineering and Management Services | C39: 8711-8748 | D39: Transportation | F39: 4000-4799
A40: Finance (Banks, Securities, Credit Agencies) | C40: 6000-6299 | D40: Utilities | F40: 4900-4999
A41: Funeral Services and Crematories | C41: 7261 | D41: Wholesale Trade | F41: 5000-5199
A42: Furniture Repair/Reupholstery | C42: 7641 | D42: Museum Art Galleries and Gardens | F42: 8412, 8422
A43: Misc. Computer Services | C43: 7379
A44: Level 2 Eligible Industries
A45: Advertising (Miscellaneous, not classified) | C45: 7319 | D45: Medical Groups | F45: 8000-8059, 8082-8099,
A46: Automobile Dealerships | C46: 5511-5599 | D46: Photographic Studios | F46: 7221
A47: Amusement, Recreation, and Entertainment | C47: 7800-7999 | D47: Restaurants | F47: 5088-5899
A48: Hotels | C48: 7000-7099 | D48: Tax Return Preparation Services/ Misc. Personal Svcs | F48: 7291-7299
A49: Insurance Carriers/Brokers | C49: 6300-6499 | D49: Real Estate | F49: 6500-6799
A50: Jewelry Manufacturing | C50: 3911-3915 | D50: Religious Organizations (Admin. And Mgmt. staff only) | F50: 8661
A51: Legal | C51: 8100-8199 | D51: Watch, Clock and Jewelry Repair | F51: 7631
A52: Management Carve-out (any industry) | C52: 9999
A53: Ineligible Industries
A54: Associations and Trusts1 | C54: 8600-8660, 8662-8699, | D54: Professional Employer Organizations (PEO) | F54: 7361
A55: Beauty and Barber Shops | C55: 7231-7241 | D55: Religious Organizations (except Churches #8661) | F55: No SIC
A56: International Affairs | C56: 9721 | D56: Private Households | F56: 8811
A57: Dental Offices, Dental Labs, and Medical Labs | C57: 8021, 8071, 8072 | D57: Partnerships | F57: No SIC
A58: Employment Agencies | C58: 7361-7363 | D58: Seasonal Employees (Christmas/Part-time Help) | F58: No SIC
A59: Groups with high turnover2 | C59: Varies | D59: Seasonal Employees (Agriculture) | F59: 0761-0783
A60: Miscellaneous Business Services | C60: 7389 | D60: Miscellaneous Services not classified elsewhere | F60: 8999
A61: 1 Management and administrative staff of associations and trusts are eligible at Level 2. Use SIC Code 9999.
A62: 2 A business has high turnover if 20% or more of the average number of its employees during the past 12 months were newly hired for reasons other than the growth of the business.

Sheet CoPower One HMO Comparison
A7: Company Information
A8: Company Name: | I8: =IF(H12="Yes",,"Must have a minimum of 2 enrolled for Good plan") -> Must have a minimum of 2 enrolled for Good plan
A9: Effective Date: | B9: Select your effective date | I9: =IF(H13="Yes",,"Must have a minimum of 5 enrolled for Better and Best plans") -> Must have a minimum of 5 enrolled for Better and Best plans
A11: Employees | B11: Select your group size | D11: Number of Single | F11: 0 | G11: =IF(GroupSize>4,5,"2-4") -> 2-4
A12: Region | B12: Select your CA DHMO Region | D12: Number of Two Party | F12: 0 | G12: =SUM(F11+F12+F13) -> 0 | H12: =IF(SUM(G12)>1,"Yes","No") -> No
A13: Life Amount2 | B13: Standard Life Amount | D13: Number of Three Party+ | F13: 0 | G13: =SUM(F11+F12+F13) -> 0 | H13: =IF(SUM(G13)>4,"Yes","No") -> No
A15: Cost Comparison
A17: =CONCATENATE(B12,B13) -> Select your CA DHMO RegionStandard Life Amount | C17: Good | E17: Better | G17: Best
A19: Single | C19: =VLOOKUP(AreaSIC_Selection,List_RateTable_HMO,2,FALSE) -> 0 | E19: =VLOOKUP(AreaSIC_Selection,List_RateTable_HMO,5,FALSE) -> 0 | G19: =VLOOKUP(AreaSIC_Selection,List_RateTable_HMO,8,FALSE) -> 0
A20: Two Party | C20: =VLOOKUP(AreaSIC_Selection,List_RateTable_HMO,3,FALSE) -> 0 | E20: =VLOOKUP(AreaSIC_Selection,List_RateTable_HMO,6,FALSE) -> 0 | G20: =VLOOKUP(AreaSIC_Selection,List_RateTable_HMO,9,FALSE) -> 0
A21: Three Party+ | C21: =VLOOKUP(AreaSIC_Selection,List_RateTable_HMO,4,FALSE) -> 0 | E21: =VLOOKUP(AreaSIC_Selection,List_RateTable_HMO,7,FALSE) -> 0 | G21: =VLOOKUP(AreaSIC_Selection,List_RateTable_HMO,10,FALSE) -> 0
A22: Total Cost | C22: =SUM((C19*F11)+(C20*F12)+(C21*F13)) -> 0 | E22: =SUM((E19*F11)+(E20*F12)+(E21*F13)) -> 0 | G22: =SUM((G19*F11)+(G20*F12)+(G21*F13)) -> 0
A23: Percent Difference between Good, Better and Best | E23: =SUM(E22-C22)/C22 ->  | G23: =SUM(G22-E22)/E22 -> 
A24: Benefit Comparison
C26: Good | E26: Better | G26: Best
C27: In Network | D27: Out of Network | E27: In Network | F27: Out of Network | G27: In Network | H27: Out of Network
A28: DHMO Dental - Delta Dental | C28: DeltaCare USA
A29: Calendar Maximum | C29: None | G29: None
A30: Deductible | C30: None | G30: None
A31: Diagnostic & Preventive Exams, x-rays, cleanings, and flouride treatments | C31: Exams, x-rays, cleanings, and flouride treatments | G31: No cost
A32: Basic Restorative | C32: Fillings (amalgan cost per surface) | G32: No cost
A33: Periodontics | C33: Scaling and Root planing | G33: $50 copay
A34: Endodontics | C34: Root canal – anterior (excluding final restoration) Root canal – molar (excluding final restoration) | G34: $95 copay $335 copay
A35: Oral Surgery | C35: Extraction, erupted tooth or exposed root Surgical removal of erupted tooth requiring removal of bone or sectioning of tooth Removal of impacted tooth – completely boney | G35: $5 copay $45 copay $95 copay
A36: Prosthodontics | C36: Crown – porcelain fused to high noble metal; full cast high noble metal Complete denture – maxillary Maxillary partial denture – resin base | G36: $355 copay $285 copay $245 copay
A37: Orthodontics | C37: Child Adult | G37: $1,900 copay $2,100 copay
A38: Vision - Vision Service Plan
A39: Annual Copayment | C39: $25 exam/$25 materials | E39: $10 exam/$25 materials | G39: $10 exam/$25 materials
A40: Eye Exam | C40: Covered after copayment | D40: Reimbursed up to $45 | E40: Covered after copayment | F40: Reimbursed up to $45 | G40: Covered after copayment | H40: Reimbursed up to $45
A41: Single-vision Lenses | C41: Covered in full | D41: Reimbursed up to $30 | E41: Covered in full | F41: Reimbursed up to $30 | G41: Covered in full | H41: Reimbursed up to $30
A42: Bifocal Lenses | C42: Covered in full | D42: Reimbursed up to $50 | E42: Covered in full | F42: Reimbursed up to $50 | G42: Covered in full | H42: Reimbursed up to $50
A43: Trifocal Lenses | C43: Covered in full | D43: Reimbursed up to $65 | E43: Covered in full | F43: Reimbursed up to $65 | G43: Covered in full | H43: Reimbursed up to $65
A44: Frames | C44: $150 allowance | D44: Reimbursed up to $70 | E44: $150 allowance | F44: Reimbursed up to $70 | G44: $150 allowance | H44: Reimbursed up to $70
A45: Contact Lenses | C45: $150 allowance | D45: Reimbursed up to $105 | E45: $150 allowance | F45: Reimbursed up to $105 | G45: $150 allowance | H45: Reimbursed up to $105
C46: Good | E46: Better | G46: Best
A47: Vision-Frequency
A48: Eye Exam | C48: 12 months | E48: 12 months | G48: 12 months
A49: Lenses | C49: 24 months | E49: 12 months | G49: 12 months
A50: Frames | C50: 24 months | E50: 24 months | G50: 12 months
A51: Contact Lenses (in lieu of lenses and a frame) | C51: 24 months | E51: 12 months | G51: 12 months
A52: Life - UNUM
A53: Basic Group Term Life with AD&D and EAP | C53: =IF($B$13="Standard Life Amount","$15,000 policy",$B$13) -> $15,000 policy | E53: =IF($B$13="Standard Life Amount","$20,000 policy",$B$13) -> $20,000 policy | G53: =IF($B$13="Standard Life Amount","$25,000 policy",$B$13) -> $25,000 policy
A54: 1 2-year rate guarantee. 2 Employers with 10 or more enrolling employees have the option of substituting the standard group term life policy amounts with either a $50,000, $100,000 or $150,000 policy for an additional charge.
A55: Presented by
A56: **Enter your contact information here.** | F56: License #
A57: This document is not meant to replace a quote and does not include all exclusions, limitations or program guidelines. While the information and rates provided here are believed to be accurate as of the print date, they are subject to change without notice. For the most up-to-date information, contact CoPower. CoPower ONE plans are not available to groups currently insured with UNUM.

Sheet CoPower One PPO Comparison
A8: Company Information
A9: Company Name: | K9: =IF(J14="Yes",,"Must have a minimum of 2 enrolled for Good plan") -> Must have a minimum of 2 enrolled for Good plan
A10: Effective Date: | B10: Select your effective date | K10: =IF(J15="Yes",,"Must have a minimum of 5 enrolled for Better, Better Plus and Best plans") -> Must have a minimum of 5 enrolled for Better, Better Plus and Best plans
A12: Employees | B12: Select your group size
A13: Region | B13: Select your CA PPO Region | E13: Number of Single | G13: 0 | I13: =IF(GroupSize>4,5,"2-4") -> 2-4
A14: SIC Level | B14: Select your SIC Level | E14: Number of Two Party | G14: 0 | I14: =SUM(G13+G14+G15) -> 0 | J14: =IF(SUM(I14)>1,"Yes","No") -> No
A15: Life Amount2 | B15: Standard Life Amount | E15: Number of Three Party+ | G15: 0 | I15: =SUM(G13+G14+G15) -> 0 | J15: =IF(SUM(I15)>4,"Yes","No") -> No
A17: Cost Comparison
A19: =CONCATENATE(B13,B14,B15,I13) -> Select your CA PPO RegionSelect your SIC LevelStandard Life Amount2-4 | B19: =SUM(CPPPO_EECheck) -> 0 | C19: Good | E19: Better | G19: Better Plus | I19: Best
A21: Single | C21: =VLOOKUP(AreaSIC_Selection,List_RateTable_PPO,2,FALSE) -> 0 | E21: =VLOOKUP(AreaSIC_Selection,List_RateTable_PPO,5,FALSE) -> 0 | G21: =VLOOKUP(AreaSIC_Selection,List_RateTable_PPO,8,FALSE) -> 0 | I21: =VLOOKUP(AreaSIC_Selection,List_RateTable_PPO,11,FALSE) -> 0
A22: Two Party | C22: =VLOOKUP(AreaSIC_Selection,List_RateTable_PPO,3,FALSE) -> 0 | E22: =VLOOKUP(AreaSIC_Selection,List_RateTable_PPO,6,FALSE) -> 0 | G22: =VLOOKUP(AreaSIC_Selection,List_RateTable_PPO,9,FALSE) -> 0 | I22: =VLOOKUP(AreaSIC_Selection,List_RateTable_PPO,12,FALSE) -> 0
A23: Three Party+ | C23: =VLOOKUP(AreaSIC_Selection,List_RateTable_PPO,4,FALSE) -> 0 | E23: =VLOOKUP(AreaSIC_Selection,List_RateTable_PPO,7,FALSE) -> 0 | G23: =VLOOKUP(AreaSIC_Selection,List_RateTable_PPO,10,FALSE) -> 0 | I23: =VLOOKUP(AreaSIC_Selection,List_RateTable_PPO,13,FALSE) -> 0
A24: Total Cost | C24: =SUM((C21*G13)+(C22*G14)+(C23*G15)) -> 0 | E24: =SUM((E21*G13)+(E22*G14)+(E23*G15)) -> 0 | G24: =SUM((G21*G13)+(G22*G14)+(G23*G15)) -> 0 | I24: =SUM((I21*G13)+(I22*G14)+(I23*G15)) -> 0
A25: Percent Difference between Good, Better and Best | E25: =SUM(E24-C24)/C24 ->  | G25: =SUM(G24-E24)/C24 ->  | I25: =SUM(I24-E24)/E24 -> 
A26: Benefit Comparison
C28: Good | E28: Better | G28: Better Plus | I28: Best
C29: In Network | D29: Out of Network | E29: In Network | F29: Out of Network | G29: In Network | H29: Out of Network | I29: In Network | J29: Out of Network
A30: Dental - Delta Dental | C30: Delta Dental PPO3 | G30: Delta Dental PPO + Premier4
A31: Calendar Maximum | C31: $1,000 | D31: $750 | E31: $1,500 | F31: $1,250 | G31: $1,500 | H31: $1,250 | I31: $2,000 | J31: $1,500
A32: Deductible | C32: $50 | D32: $75 | E32: $50 | F32: $75 | G32: $50 | H32: $75 | I32: $50 | J32: $75
A33: Deductible Waived for Diagnostic & Preventive | C33: Yes | D33: No | E33: Yes | F33: No | G33: Yes | H33: No | I33: Yes
A34: Diagnostic and Preventive Services | C34: 100% | D34: 50% | E34: 100% | F34: 80% | G34: 100% | H34: 80% | I34: 100%
A35: Basic, Oral Surgery, Endodontics and Periodontics | C35: 80% | D35: 50% | E35: 80% | G35: 80% | I35: 80%
A36: Major Services | C36: 50% | E36: 50% | G36: 50% | I36: 50%
A37: Orthodontics-Children Only (Available to groups 5+ enrolled) | C37: Not available | E37: 50% lifetime max $1,000 | G37: 50% lifetime max $1,000 | I37: 50% lifetime max $1,000
A38: Vision - Vision Service Plan
A39: Annual Copayment | C39: $25 exam/$25 materials | E39: $10 exam/$25 materials | G39: $10 exam/$25 materials | I39: $10 exam/$25 materials
A40: Eye Exam | C40: Covered after copayment | D40: Reimbursed up to $45 | E40: Covered after copayment | F40: Reimbursed up to $45 | G40: Covered after copayment | H40: Reimbursed up to $45 | I40: Covered after copayment | J40: Reimbursed up to $45
A41: Single-vision Lenses | C41: Covered in full | D41: Reimbursed up to $30 | E41: Covered in full | F41: Reimbursed up to $30 | G41: Covered in full | H41: Reimbursed up to $30 | I41: Covered in full | J41: Reimbursed up to $30
A42: Bifocal Lenses | C42: Covered in full | D42: Reimbursed up to $50 | E42: Covered in full | F42: Reimbursed up to $50 | G42: Covered in full | H42: Reimbursed up to $50 | I42: Covered in full | J42: Reimbursed up to $50
A43: Trifocal Lenses | C43: Covered in full | D43: Reimbursed up to $65 | E43: Covered in full | F43: Reimbursed up to $65 | G43: Covered in full | H43: Reimbursed up to $65 | I43: Covered in full | J43: Reimbursed up to $65
A44: Frames | C44: $150 allowance | D44: Reimbursed up to $70 | E44: $150 allowance | F44: Reimbursed up to $70 | G44: $150 allowance | H44: Reimbursed up to $70 | I44: $150 allowance | J44: Reimbursed up to $70
A45: Contact Lenses | C45: $150 allowance | D45: Reimbursed up to $105 | E45: $150 allowance | F45: Reimbursed up to $105 | G45: $150 allowance | H45: Reimbursed up to $105 | I45: $150 allowance | J45: Reimbursed up to $105
A46: Vision-Frequency
A47: Eye Exam | C47: 12 months | E47: 12 months | G47: 12 months | I47: 12 months
A48: Lenses | C48: 24 months | E48: 12 months | G48: 12 months | I48: 12 months
A49: Frames | C49: 24 months | E49: 24 months | G49: 24 months | I49: 12 months
A50: Contact Lenses (in lieu of lenses and a frame) | C50: 24 months | E50: 12 months | G50: 12 months | I50: 12 months
C51: Good | E51: Better | G51: Better Plus | I51: Best
A52: Life - UNUM
A53: Basic Group Term Life with AD&D and EAP | C53: =IF($B$15="Standard Life Amount","$15,000 policy",$B$15) -> $15,000 policy | E53: =IF($B$15="Standard Life Amount","$20,000 policy",$B$15) -> $20,000 policy | G53: =IF($B$15="Standard Life Amount","$20,000 policy",$B$15) -> $20,000 policy | I53: =IF($B$15="Standard Life Amount","$25,000 policy",$B$15) -> $25,000 policy
A54: 1 2-year rate guarantee.
A55: 2 Employers with 10 or more enrolling employees have the option of substituting the standard group term life policy amounts with either a $50,000, $100,000 or $150,000 policy for an additional charge.
A56: 3 Delta Dental PPO: All dentists (in- and out-of-network) are reimbursed at the lesser of the submitted charge or the PPO provider allowed fee.
A57: 4 Delta Dental PPO + Premier: PPO dentists are reimbursed at the lesser of the submitted charge or the PPO provider allowed fee. Delta Dental Premier dentists are reimbursed at the lesser of the submitted charge or the Premier provider allowed fee. Non-contracted dentists are reimbursed at the lesser of the submitted charge or the fee that satisfies the majority of dentists with the same training and geographical area.
A59: Presented by
A60: **Enter your contact information here.** | H60: License #
A61: This document is not meant to replace a quote and does not include all exclusions, limitations or program guidelines. While the information and rates provided here are believed to be accurate as of the print date, they are subject to change without notice. For the most up-to-date information, contact CoPower. CoPower ONE plans are not available to groups currently insured with UNUM.

Sheet CoPower One PPO+HMO Comparison
A8: Company Information
A9: Company Name: | K9: =IF(J16="Yes",,"Dual Choice requires a minimum of 4 enrolled. ") -> Dual Choice requires a minimum of 4 enrolled.
A10: Effective Date: | B10: Select your effective date
A12: Employees | B12: Select your group size | G12: PPO | H12: DHMO
A13: PPO Region | B13: Select your CA PPO Region | E13: Number of Single | G13: 0 | H13: 0 | I13: =IF(SUM(G13:G15)<2,"0","1") -> 0 | J13: =IF(SUM(G13:G15)<5,"0","1") -> 0 | K13: =IF(I15="Yes",,"CoPower ONE Good: Dual Choice requires a minimum of 2 enrolled in both the DHMO and PPO option.") -> CoPower ONE Good: Dual Choice requires a minimum of 2 enrolled in both the DHMO and PPO option.
A14: DHMO Region | B14: Select your CA DHMO Region | E14: Number of Two Party | G14: 0 | H14: 0 | I14: =IF(SUM(H13:H15)<2,"0","1") -> 0 | J14: =IF(SUM(H13:H15)<2,"0","1") -> 0
A15: SIC Level | B15: Select your SIC Level | E15: Number of Three Party+ | G15: 0 | H15: 0 | I15: =IF(SUM(I13+I14)>=2,"Yes","No") -> No | J15: =IF(SUM(J13+J14)>=2,"Yes","No") -> No
A16: Life Amount3 | B16: Standard Life Amount | E16: =IF(GroupSize_Dual>4,5,"2-4") -> 2-4 | F16: =SUM(GroupSize_Dual+H16) -> 0 | G16: =SUM(G13+G14+G15) -> 0 | H16: =SUM(H13+H14+H15) -> 0 | J16: =IF(SUM(G16+H16)>3,"Yes","No") -> No | K16: =IF(J15="Yes",,"CoPower ONE Better, Better Plus, and Best: Dual Choice requires a minimum of 5 enrolled in PPO and 2 enrolled in the DHMO option.") -> CoPower ONE Better, Better Plus, and Best: Dual Choice requires a minimum of 5 enrolled in PPO and 2 enrolled in the DHMO option.
A17: .
A18: Cost Comparison
A20: =CONCATENATE(B13,B15,B16,E16) -> Select your CA PPO RegionSelect your SIC LevelStandard Life Amount2-4 | B20: =CONCATENATE(B14,B16) -> Select your CA DHMO RegionStandard Life Amount | C20: Good | E20: Better | G20: Better Plus | I20: Best
A21: PPO Enrollment
A22: Single | C22: =VLOOKUP(AreaSIC_SelectionPPO,List_RateTable_PPO,2,FALSE) -> 0 | E22: =VLOOKUP(AreaSIC_SelectionPPO,List_RateTable_PPO,5,FALSE) -> 0 | G22: =VLOOKUP(AreaSIC_SelectionPPO,List_RateTable_PPO,8,FALSE) -> 0 | I22: =VLOOKUP(AreaSIC_SelectionPPO,List_RateTable_PPO,11,FALSE) -> 0
A23: Two Party | C23: =VLOOKUP(AreaSIC_SelectionPPO,List_RateTable_PPO,3,FALSE) -> 0 | E23: =VLOOKUP(AreaSIC_SelectionPPO,List_RateTable_PPO,6,FALSE) -> 0 | G23: =VLOOKUP(AreaSIC_SelectionPPO,List_RateTable_PPO,9,FALSE) -> 0 | I23: =VLOOKUP(AreaSIC_SelectionPPO,List_RateTable_PPO,12,FALSE) -> 0
A24: Three Party+ | C24: =VLOOKUP(AreaSIC_SelectionPPO,List_RateTable_PPO,4,FALSE) -> 0 | E24: =VLOOKUP(AreaSIC_SelectionPPO,List_RateTable_PPO,7,FALSE) -> 0 | G24: =VLOOKUP(AreaSIC_SelectionPPO,List_RateTable_PPO,10,FALSE) -> 0 | I24: =VLOOKUP(AreaSIC_SelectionPPO,List_RateTable_PPO,13,FALSE) -> 0 | L24: =IF(SUM($G$13:$G$15)>0,SUM(($G$13*C22)+($G$14*C23)+($G$15*C24)),0) -> 0 | M24: =IF(SUM($G$13:$G$15)>0,SUM(($G$13*E22)+($G$14*E23)+($G$15*E24)),0) -> 0 | N24: =IF(SUM($G$13:$G$15)>0,SUM(($G$13*G22)+($G$14*G23)+($G$15*G24)),0) -> 0 | O24: =IF(SUM($G$13:$G$15)>0,SUM(($G$13*I22)+($G$14*I23)+($G$15*I24)),0) -> 0
A25: DHMO Enrollment
A26: Single | C26: =VLOOKUP(AreaSIC_SelectionHMO,List_RateTable_HMO,2,FALSE) -> 0 | E26: =VLOOKUP(AreaSIC_SelectionHMO,List_RateTable_HMO,5,FALSE) -> 0 | G26: =VLOOKUP(AreaSIC_SelectionHMO,List_RateTable_HMO,5,FALSE) -> 0 | I26: =VLOOKUP(AreaSIC_SelectionHMO,List_RateTable_HMO,8,FALSE) -> 0
A27: Two Party | C27: =VLOOKUP(AreaSIC_SelectionHMO,List_RateTable_HMO,3,FALSE) -> 0 | E27: =VLOOKUP(AreaSIC_SelectionHMO,List_RateTable_HMO,6,FALSE) -> 0 | G27: =VLOOKUP(AreaSIC_SelectionHMO,List_RateTable_HMO,6,FALSE) -> 0 | I27: =VLOOKUP(AreaSIC_SelectionHMO,List_RateTable_HMO,9,FALSE) -> 0
A28: Three Party+ | C28: =VLOOKUP(AreaSIC_SelectionHMO,List_RateTable_HMO,4,FALSE) -> 0 | E28: =VLOOKUP(AreaSIC_SelectionHMO,List_RateTable_HMO,7,FALSE) -> 0 | G28: =VLOOKUP(AreaSIC_SelectionHMO,List_RateTable_HMO,7,FALSE) -> 0 | I28: =VLOOKUP(AreaSIC_SelectionHMO,List_RateTable_HMO,10,FALSE) -> 0 | L28: =IF(SUM($H$13:$H$15)>0,SUM(($H$13*C26)+($H$14*C27)+($H$15*C28)),0) -> 0 | M28: =IF(SUM($H$13:$H$15)>0,SUM(($H$13*E26)+($H$14*E27)+($H$15*E28)),0) -> 0 | N28: =IF(SUM($H$13:$H$15)>0,SUM(($H$13*G26)+($H$14*G27)+($H$15*G28)),0) -> 0 | O28: =IF(SUM($H$13:$H$15)>0,SUM(($H$13*I26)+($H$14*I27)+($H$15*I28)),0) -> 0
A29: Total Cost | C29: =SUM(L24+L28) -> 0 | E29: =SUM(M24+M28) -> 0 | G29: =SUM(N24+N28) -> 0 | I29: =SUM(O24+O28) -> 0
A30: Percent Difference between Good, Better and Best | E30: =SUM(E29-C29)/C29 ->  | I30: =SUM(I29-E29)/E29 -> 
A31: Benefit Comparison
C33: Good | E33: Better | G33: Better Plus | I33: Best
C34: In Network | D34: Out of Network | E34: In Network | F34: Out of Network | G34: In Network | H34: Out of Network | I34: In Network | J34: Out of Network
A35: PPO Dental - Delta Dental | C35: Delta Dental PPO4 | G35: Delta Dental PPO + Premier 5
A36: Calendar Maximum | C36: $1,000 | D36: $750 | E36: $1,500 | F36: $1,250 | G36: $1,500 | H36: $1,250 | I36: $2,000 | J36: $1,500
A37: Deductible* | C37: $50 | D37: $75 | E37: $50 | F37: $75 | G37: $50 | H37: $75 | I37: $50 | J37: $75
A38: Deductible Waived for Diagnostic & Preventive | C38: Yes | D38: No | E38: Yes | F38: No | G38: Yes | H38: No | I38: Yes
A39: Diagnostic and Preventive Services | C39: 100% | D39: 50% | E39: 100% | F39: 80% | G39: 100% | H39: 80% | I39: 100%
A40: Basic, Oral Surgery, Endodontics and Periodontics | C40: 80% | D40: 50% | E40: 80% | G40: 80% | I40: 80%
A41: Major Services | C41: 50% | E41: 50% | G41: 50% | I41: 50%
A42: Orthodontics-Children Only (Available to groups 5+ enrolled) | C42: Not available | E42: 50% lifetime max $1,000 | G42: 50% lifetime max $1,000 | I42: 50% lifetime max $1,000
A43: DHMO Dental - Delta Dental | C43: DeltaCare USA
A44: Calendar Maximum | C44: None | J44: None
A45: Deductible | C45: None | J45: None
A46: Diagnostic & Preventive | C46: Exams, x-rays, cleanings, and flouride treatments | J46: No cost
A47: Basic Restorative | C47: Fillings (amalgan cost per surface) | J47: No cost
A48: Periodontics | C48: Scaling and Root planing | J48: $50 copay
A49: Endodontics | C49: Root canal – anterior (excluding final restoration) Root canal – molar (excluding final restoration) | J49: $95 copay $335 copay
A50: Oral Surgery | C50: Extraction, erupted tooth or exposed root Surgical removal of erupted tooth requiring removal of bone or sectioning of tooth Removal of impacted tooth – completely boney | J50: $5 copay $45 copay $95 copay
A51: Prosthodontics | C51: Crown – porcelain fused to high noble metal; full cast high noble metal Complete denture – maxillary Maxillary partial denture – resin base | J51: $355 copay $285 copay $245 copay
A52: Orthodontics | C52: Child Adult | J52: $1,900 copay $2,100 copay
C53: Good | E53: Better | G53: Better Plus | I53: Best
A54: Vision - Vision Service Plan
A55: Annual Copayment | C55: $25 exam/$25 materials | E55: $10 exam/$25 materials | G55: $10 exam/$25 materials | I55: $10 exam/$25 materials
A56: Eye Exam | C56: Covered after copayment | D56: Reimbursed up to $45 | E56: Covered after copayment | F56: Reimbursed up to $45 | G56: Covered after copayment | H56: Reimbursed up to $45 | I56: Covered after copayment | J56: Reimbursed up to $45
A57: Single-vision Lenses | C57: Covered in full | D57: Reimbursed up to $30 | E57: Covered in full | F57: Reimbursed up to $30 | G57: Covered in full | H57: Reimbursed up to $30 | I57: Covered in full | J57: Reimbursed up to $30
A58: Bifocal Lenses | C58: Covered in full | D58: Reimbursed up to $50 | E58: Covered in full | F58: Reimbursed up to $50 | G58: Covered in full | H58: Reimbursed up to $50 | I58: Covered in full | J58: Reimbursed up to $50
A59: Trifocal Lenses | C59: Covered in full | D59: Reimbursed up to $65 | E59: Covered in full | F59: Reimbursed up to $65 | G59: Covered in full | H59: Reimbursed up to $65 | I59: Covered in full | J59: Reimbursed up to $65
A60: Frames | C60: $150 allowance | D60: Reimbursed up to $70 | E60: $150 allowance | F60: Reimbursed up to $70 | G60: $150 allowance | H60: Reimbursed up to $70 | I60: $150 allowance | J60: Reimbursed up to $70
A61: Contact Lenses | C61: $150 allowance | D61: Reimbursed up to $105 | E61: $150 allowance | F61: Reimbursed up to $105 | G61: $150 allowance | H61: Reimbursed up to $105 | I61: $150 allowance | J61: Reimbursed up to $105
A62: Vision-Frequency
A63: Eye Exam | C63: 12 months | E63: 12 months | G63: 12 months | I63: 12 months
A64: Lenses | C64: 24 months | E64: 12 months | G64: 12 months | I64: 12 months
A65: Frames | C65: 24 months | E65: 24 months | G65: 24 months | I65: 12 months
A66: Contact Lenses (in lieu of lenses and a frame) | C66: 24 months | E66: 12 months | G66: 12 months | I66: 12 months
A67: Life - UNUM
A68: Basic Group Term Life with AD&D and EAP | C68: =IF($B$16="Standard Life Amount","$15,000 policy",$B$16) -> $15,000 policy | E68: =IF($B$16="Standard Life Amount","$20,000 policy",$B$16) -> $20,000 policy | G68: =IF($B$16="Standard Life Amount","$20,000 policy",$B$16) -> $20,000 policy | I68: =IF($B$16="Standard Life Amount","$25,000 policy",$B$16) -> $25,000 policy
A69: 1 Groups of 4 may elect CoPower ONEGood, with 2 enrolled employees on the PPO plan and a minimum of 2 on DeltaCare USA. Dual Choice with CoPower ONE Better, Better Plus, and Best plans requires a minimum of 5 enrolled emplolyees on the PPO plan and a minimum of 2 on DeltaCare USA. Bundles cannot be mixed. CoPower ONE Good PPO will pair with CoPower ONE Good HMO. Better Plus PPO will pair with Better HMO. 2 2-year rate guarantee
A70: 3 Employers with 10 or more enrolling employees have the option of substituting the standard group term life policy amounts with either a $50,000, $100,000 or $150,000 policy for an additional charge
A71: 4 Delta Dental PPO: All dentists (in- and out-of-network) are reimbursed at the lesser of the submitted charge or the PPO provider allowed fee.
A72: 5 Delta Dental PPO + Premier: PPO dentists are reimbursed at the lesser of the submitted charge or the PPO provider allowed fee. Delta Dental Premier dentists are reimbursed at the lesser of the submitted charge or the Premier provider allowed fee. Non-contracted dentists are reimbursed at the lesser of the submitted charge or the fee that satisfies the majority of dentists with the same training and geographical area.
A74: Presented by
A76: **Enter your contact information here.** | H76: License #
A77: This document is not meant to replace a quote and does not include all exclusions, limitations or program guidelines. While the information and rates provided here are believed to be accurate as of the print date, they are subject to change without notice. For the most up-to-date information, contact CoPower. CoPower ONE plans are not available to groups currently insured with UNUM.

Sheet Lists (hidden)
A1: List_Area_PPO | B1: List_SIC | D1: List_RateTable_PPO | E1: GOOD | H1: BETTER | K1: BETTER PLUS | N1: BEST
A2: Select your CA PPO Region | B2: Select your SIC Level | D2: Region 21Standard Life Amount5 | E2: 46 | F2: 85 | G2: 128 | H2: 57 | I2: 108 | J2: 178 | K2: 63 | L2: 118 | M2: 197 | N2: 78 | O2: 146 | P2: 239
A3: Region 1 | B3: 1 | D3: Region 22Standard Life Amount5 | E3: 53 | F3: 98 | G3: 148 | H3: 66 | I3: 124 | J3: 205 | K3: 72 | L3: 138 | M3: 231 | N3: 90 | O3: 169 | P3: 278
A4: Region 2 | B4: 2 | D4: Region 11Standard Life Amount5 | E4: 45 | F4: 80 | G4: 121 | H4: 56 | I4: 101 | J4: 168 | K4: 63 | L4: 113 | M4: 188 | N4: 76 | O4: 138 | P4: 228
D5: Region 12Standard Life Amount5 | E5: 52 | F5: 93 | G5: 141 | H5: 65 | I5: 118 | J5: 195 | K5: 71 | L5: 131 | M5: 220 | N5: 88 | O5: 161 | P5: 264
D7: Region 21Enhanced Life $50,0005 | E7: =SUM(E2+$E$94) -> 55.8 | F7: 94.8 | G7: 137.8 | H7: =SUM(H2+$H$94) -> 65.4 | I7: 116.4 | J7: 186.4 | K7: =SUM(K2+$H$94) -> 71.4 | L7: 126.4 | M7: 205.4 | N7: =SUM(N2+$K$94) -> 85 | O7: 153 | P7: 246
D8: Region 22Enhanced Life $50,0005 | E8: 62.8 | F8: 107.8 | G8: 157.8 | H8: 74.4 | I8: 132.4 | J8: 213.4 | K8: 80.4 | L8: 146.4 | M8: 239.4 | N8: 97 | O8: 176 | P8: 285
D9: Region 11Enhanced Life $50,0005 | E9: 54.8 | F9: 89.8 | G9: 130.8 | H9: 64.4 | I9: 109.4 | J9: 176.4 | K9: 71.4 | L9: 121.4 | M9: 196.4 | N9: 83 | O9: 145 | P9: 235
D10: Region 12Enhanced Life $50,0005 | E10: 61.8 | F10: 102.8 | G10: 150.8 | H10: 73.4 | I10: 126.4 | J10: 203.4 | K10: 79.4 | L10: 139.4 | M10: 228.4 | N10: 95 | O10: 168 | P10: 271
A12: List_EffDate | B12: List_LifeAmounts | D12: Region 21Enhanced Life $100,0005 | E12: =SUM(E2+$E$95) -> 69.8 | F12: 108.8 | G12: 151.8 | H12: =SUM(H2+$H$95) -> 79.4 | I12: 130.4 | J12: 200.4 | K12: =SUM(K2+$H$95) -> 85.4 | L12: 140.4 | M12: 219.4 | N12: =SUM(N2+$K$95) -> 99 | O12: 167 | P12: 260
A13: Select your effective date | B13: Standard Life Amount | D13: Region 22Enhanced Life $100,0005 | E13: 76.8 | F13: 121.8 | G13: 171.8 | H13: 88.4 | I13: 146.4 | J13: 227.4 | K13: 94.4 | L13: 160.4 | M13: 253.4 | N13: 111 | O13: 190 | P13: 299
A14: 1/1/20 | B14: Enhanced Life $50,000 | D14: Region 11Enhanced Life $100,0005 | E14: 68.8 | F14: 103.8 | G14: 144.8 | H14: 78.4 | I14: 123.4 | J14: 190.4 | K14: 85.4 | L14: 135.4 | M14: 210.4 | N14: 97 | O14: 159 | P14: 249
A15: 2/1/20 | B15: Enhanced Life $100,000 | D15: Region 12Enhanced Life $100,0005 | E15: 75.8 | F15: 116.8 | G15: 164.8 | H15: 87.4 | I15: 140.4 | J15: 217.4 | K15: 93.4 | L15: 153.4 | M15: 242.4 | N15: 109 | O15: 182 | P15: 285
A16: 3/1/20 | B16: Enhanced Life $150,000
A17: 4/1/20 | D17: Region 21Enhanced Life $150,0005 | E17: =SUM(E2+$E$96) -> 83.8 | F17: =SUM(F2+$E$96) -> 122.8 | G17: 165.8 | H17: =SUM(H2+$H$96) -> 93.4 | I17: 144.4 | J17: 214.4 | K17: =SUM(K2+$H$96) -> 99.4 | L17: 154.4 | M17: 233.4 | N17: =SUM(N2+$K$96) -> 113 | O17: 181 | P17: 274
A18: 5/1/20 | D18: Region 22Enhanced Life $150,0005 | E18: 90.8 | F18: 135.8 | G18: 185.8 | H18: 102.4 | I18: 160.4 | J18: 241.4 | K18: 108.4 | L18: 174.4 | M18: 267.4 | N18: 125 | O18: 204 | P18: 313
A19: 6/1/20 | D19: Region 11Enhanced Life $150,0005 | E19: 82.8 | F19: 117.8 | G19: 158.8 | H19: 92.4 | I19: 137.4 | J19: 204.4 | K19: 99.4 | L19: 149.4 | M19: 224.4 | N19: 111 | O19: 173 | P19: 263
A20: 7/1/20 | D20: Region 12Enhanced Life $150,0005 | E20: 89.8 | F20: 130.8 | G20: 178.8 | H20: 101.4 | I20: 154.4 | J20: 231.4 | K20: 107.4 | L20: 167.4 | M20: 256.4 | N20: 123 | O20: 196 | P20: 299
A21: 8/1/20
A22: 9/1/20 | D22: Region 21Standard Life Amount2-4 | E22: 49 | F22: 91 | G22: 137 | H22: 0 | I22: 0 | J22: 0 | K22: 0 | L22: 0 | M22: 0 | N22: 0 | O22: 0 | P22: 0
A23: 10/1/20 | D23: Region 22Standard Life Amount2-4 | E23: 57 | F23: 106 | G23: 160 | H23: 0 | I23: 0 | J23: 0 | K23: 0 | L23: 0 | M23: 0 | N23: 0 | O23: 0 | P23: 0
A24: 11/1/20 | D24: Region 11Standard Life Amount2-4 | E24: 49 | F24: 86 | G24: 131 | H24: 0 | I24: 0 | J24: 0 | K24: 0 | L24: 0 | M24: 0 | N24: 0 | O24: 0 | P24: 0
A25: 12/1/20 | D25: Region 12Standard Life Amount2-4 | E25: 57 | F25: 101 | G25: 153 | H25: 0 | I25: 0 | J25: 0 | K25: 0 | L25: 0 | M25: 0 | N25: 0 | O25: 0 | P25: 0
D27: Region 21Enhanced Life $50,0002-4 | E27: 0 | F27: 0 | G27: 0 | H27: 0 | I27: 0 | J27: 0 | K27: 0 | L27: 0 | M27: 0 | N27: 0 | O27: 0 | P27: 0
D28: Region 22Enhanced Life $50,0002-4 | E28: 0 | F28: 0 | G28: 0 | H28: 0 | I28: 0 | J28: 0 | K28: 0 | L28: 0 | M28: 0 | N28: 0 | O28: 0 | P28: 0
A29: List_Area_HMO | B29: List_EligibleEEs | D29: Region 11Enhanced Life $50,0002-4 | E29: 0 | F29: 0 | G29: 0 | H29: 0 | I29: 0 | J29: 0 | K29: 0 | L29: 0 | M29: 0 | N29: 0 | O29: 0 | P29: 0
A30: Select your CA DHMO Region | B30: Select your group size | D30: Region 12Enhanced Life $50,0002-4 | E30: 0 | F30: 0 | G30: 0 | H30: 0 | I30: 0 | J30: 0 | K30: 0 | L30: 0 | M30: 0 | N30: 0 | O30: 0 | P30: 0
A31: Region 1 & 2 | B31: 2-9 Employees
A32: Region 3 | B32: 10-99 Employees | D32: Region 21Enhanced Life $100,0002-4 | E32: 0 | F32: 0 | G32: 0 | H32: 0 | I32: 0 | J32: 0 | K32: 0 | L32: 0 | M32: 0 | N32: 0 | O32: 0 | P32: 0
A33: Region 4 | D33: Region 22Enhanced Life $100,0002-4 | E33: 0 | F33: 0 | G33: 0 | H33: 0 | I33: 0 | J33: 0 | K33: 0 | L33: 0 | M33: 0 | N33: 0 | O33: 0 | P33: 0
A34: Region 5 | D34: Region 11Enhanced Life $100,0002-4 | E34: 0 | F34: 0 | G34: 0 | H34: 0 | I34: 0 | J34: 0 | K34: 0 | L34: 0 | M34: 0 | N34: 0 | O34: 0 | P34: 0
D35: Region 12Enhanced Life $100,0002-4 | E35: 0 | F35: 0 | G35: 0 | H35: 0 | I35: 0 | J35: 0 | K35: 0 | L35: 0 | M35: 0 | N35: 0 | O35: 0 | P35: 0
D37: Region 21Enhanced Life $150,0002-4 | E37: 0 | F37: 0 | G37: 0 | H37: 0 | I37: 0 | J37: 0 | K37: 0 | L37: 0 | M37: 0 | N37: 0 | O37: 0 | P37: 0
D38: Region 22Enhanced Life $150,0002-4 | E38: 0 | F38: 0 | G38: 0 | H38: 0 | I38: 0 | J38: 0 | K38: 0 | L38: 0 | M38: 0 | N38: 0 | O38: 0 | P38: 0
D39: Region 11Enhanced Life $150,0002-4 | E39: 0 | F39: 0 | G39: 0 | H39: 0 | I39: 0 | J39: 0 | K39: 0 | L39: 0 | M39: 0 | N39: 0 | O39: 0 | P39: 0
D40: Region 12Enhanced Life $150,0002-4 | E40: 0 | F40: 0 | G40: 0 | H40: 0 | I40: 0 | J40: 0 | K40: 0 | L40: 0 | M40: 0 | N40: 0 | O40: 0 | P40: 0
D47: Select your CA PPO RegionSelect your SIC LevelStandard Life Amount5 | E47: 0 | F47: 0 | G47: 0 | H47: 0 | I47: 0 | J47: 0 | K47: 0 | L47: 0 | M47: 0 | N47: 0 | O47: 0 | P47: 0
D48: Select your CA PPO Region1Standard Life Amount5 | E48: 0 | F48: 0 | G48: 0 | H48: 0 | I48: 0 | J48: 0 | K48: 0 | L48: 0 | M48: 0 | N48: 0 | O48: 0 | P48: 0
D49: Select your CA PPO Region2Standard Life Amount5 | E49: 0 | F49: 0 | G49: 0 | H49: 0 | I49: 0 | J49: 0 | K49: 0 | L49: 0 | M49: 0 | N49: 0 | O49: 0 | P49: 0
D50: Select your CA PPO RegionSelect your SIC LevelEnhanced Life $50,0005 | E50: 0 | F50: 0 | G50: 0 | H50: 0 | I50: 0 | J50: 0 | K50: 0 | L50: 0 | M50: 0 | N50: 0 | O50: 0 | P50: 0
D51: Select your CA PPO Region1Enhanced Life $50,0005 | E51: 0 | F51: 0 | G51: 0 | H51: 0 | I51: 0 | J51: 0 | K51: 0 | L51: 0 | M51: 0 | N51: 0 | O51: 0 | P51: 0
D52: Select your CA PPO Region2Enhanced Life $50,0005 | E52: 0 | F52: 0 | G52: 0 | H52: 0 | I52: 0 | J52: 0 | K52: 0 | L52: 0 | M52: 0 | N52: 0 | O52: 0 | P52: 0
D53: Select your CA PPO RegionSelect your SIC LevelEnhanced Life $100,0005 | E53: 0 | F53: 0 | G53: 0 | H53: 0 | I53: 0 | J53: 0 | K53: 0 | L53: 0 | M53: 0 | N53: 0 | O53: 0 | P53: 0
D54: Select your CA PPO Region1Enhanced Life $100,0005 | E54: 0 | F54: 0 | G54: 0 | H54: 0 | I54: 0 | J54: 0 | K54: 0 | L54: 0 | M54: 0 | N54: 0 | O54: 0 | P54: 0
D55: Select your CA PPO Region2Enhanced Life $100,0005 | E55: 0 | F55: 0 | G55: 0 | H55: 0 | I55: 0 | J55: 0 | K55: 0 | L55: 0 | M55: 0 | N55: 0 | O55: 0 | P55: 0
D56: Select your CA PPO RegionSelect your SIC LevelEnhanced Life $150,0005 | E56: 0 | F56: 0 | G56: 0 | H56: 0 | I56: 0 | J56: 0 | K56: 0 | L56: 0 | M56: 0 | N56: 0 | O56: 0 | P56: 0
D57: Select your CA PPO Region1Enhanced Life $150,0005 | E57: 0 | F57: 0 | G57: 0 | H57: 0 | I57: 0 | J57: 0 | K57: 0 | L57: 0 | M57: 0 | N57: 0 | O57: 0 | P57: 0
D58: Select your CA PPO Region2Enhanced Life $150,0005 | E58: 0 | F58: 0 | G58: 0 | H58: 0 | I58: 0 | J58: 0 | K58: 0 | L58: 0 | M58: 0 | N58: 0 | O58: 0 | P58: 0
E59: 0 | F59: 0 | G59: 0 | H59: 0 | I59: 0 | J59: 0 | K59: 0 | L59: 0 | M59: 0 | N59: 0 | O59: 0 | P59: 0
D60: Region 2Select your SIC LevelStandard Life Amount5 | E60: 0 | F60: 0 | G60: 0 | H60: 0 | I60: 0 | J60: 0 | K60: 0 | L60: 0 | M60: 0 | N60: 0 | O60: 0 | P60: 0
D61: Region 2Select your SIC LevelEnhanced Life $50,0005 | E61: 0 | F61: 0 | G61: 0 | H61: 0 | I61: 0 | J61: 0 | K61: 0 | L61: 0 | M61: 0 | N61: 0 | O61: 0 | P61: 0
D62: Region 2Select your SIC LevelEnhanced Life $100,0005 | E62: 0 | F62: 0 | G62: 0 | H62: 0 | I62: 0 | J62: 0 | K62: 0 | L62: 0 | M62: 0 | N62: 0 | O62: 0 | P62: 0
D63: Region 2Select your SIC LevelEnhanced Life $150,0005 | E63: 0 | F63: 0 | G63: 0 | H63: 0 | I63: 0 | J63: 0 | K63: 0 | L63: 0 | M63: 0 | N63: 0 | O63: 0 | P63: 0
E64: 0 | F64: 0 | G64: 0 | H64: 0 | I64: 0 | J64: 0 | K64: 0 | L64: 0 | M64: 0 | N64: 0 | O64: 0 | P64: 0
D65: Region 1Select your SIC LevelStandard Life Amount5 | E65: 0 | F65: 0 | G65: 0 | H65: 0 | I65: 0 | J65: 0 | K65: 0 | L65: 0 | M65: 0 | N65: 0 | O65: 0 | P65: 0
D66: Region 1Select your SIC LevelEnhanced Life $50,0005 | E66: 0 | F66: 0 | G66: 0 | H66: 0 | I66: 0 | J66: 0 | K66: 0 | L66: 0 | M66: 0 | N66: 0 | O66: 0 | P66: 0
D67: Region 1Select your SIC LevelEnhanced Life $100,0005 | E67: 0 | F67: 0 | G67: 0 | H67: 0 | I67: 0 | J67: 0 | K67: 0 | L67: 0 | M67: 0 | N67: 0 | O67: 0 | P67: 0
D68: Region 1Select your SIC LevelEnhanced Life $150,0005 | E68: 0 | F68: 0 | G68: 0 | H68: 0 | I68: 0 | J68: 0 | K68: 0 | L68: 0 | M68: 0 | N68: 0 | O68: 0 | P68: 0
D70: Select your CA PPO RegionSelect your SIC LevelStandard Life Amount2-4 | E70: 0 | F70: 0 | G70: 0 | H70: 0 | I70: 0 | J70: 0 | K70: 0 | L70: 0 | M70: 0 | N70: 0 | O70: 0 | P70: 0
D71: Select your CA PPO Region1Standard Life Amount2-4 | E71: 0 | F71: 0 | G71: 0 | H71: 0 | I71: 0 | J71: 0 | K71: 0 | L71: 0 | M71: 0 | N71: 0 | O71: 0 | P71: 0
D72: Select your CA PPO Region2Standard Life Amount2-4 | E72: 0 | F72: 0 | G72: 0 | H72: 0 | I72: 0 | J72: 0 | K72: 0 | L72: 0 | M72: 0 | N72: 0 | O72: 0 | P72: 0
D73: Select your CA PPO RegionSelect your SIC LevelEnhanced Life $50,0002-4 | E73: 0 | F73: 0 | G73: 0 | H73: 0 | I73: 0 | J73: 0 | K73: 0 | L73: 0 | M73: 0 | N73: 0 | O73: 0 | P73: 0
D74: Select your CA PPO Region1Enhanced Life $50,0002-4 | E74: 0 | F74: 0 | G74: 0 | H74: 0 | I74: 0 | J74: 0 | K74: 0 | L74: 0 | M74: 0 | N74: 0 | O74: 0 | P74: 0
D75: Select your CA PPO Region2Enhanced Life $50,0002-4 | E75: 0 | F75: 0 | G75: 0 | H75: 0 | I75: 0 | J75: 0 | K75: 0 | L75: 0 | M75: 0 | N75: 0 | O75: 0 | P75: 0
D76: Select your CA PPO RegionSelect your SIC LevelEnhanced Life $100,0002-4 | E76: 0 | F76: 0 | G76: 0 | H76: 0 | I76: 0 | J76: 0 | K76: 0 | L76: 0 | M76: 0 | N76: 0 | O76: 0 | P76: 0
D77: Select your CA PPO Region1Enhanced Life $100,0002-4 | E77: 0 | F77: 0 | G77: 0 | H77: 0 | I77: 0 | J77: 0 | K77: 0 | L77: 0 | M77: 0 | N77: 0 | O77: 0 | P77: 0
D78: Select your CA PPO Region2Enhanced Life $100,0002-4 | E78: 0 | F78: 0 | G78: 0 | H78: 0 | I78: 0 | J78: 0 | K78: 0 | L78: 0 | M78: 0 | N78: 0 | O78: 0 | P78: 0
D79: Select your CA PPO RegionSelect your SIC LevelEnhanced Life $150,0002-4 | E79: 0 | F79: 0 | G79: 0 | H79: 0 | I79: 0 | J79: 0 | K79: 0 | L79: 0 | M79: 0 | N79: 0 | O79: 0 | P79: 0
D80: Select your CA PPO Region1Enhanced Life $150,0002-4 | E80: 0 | F80: 0 | G80: 0 | H80: 0 | I80: 0 | J80: 0 | K80: 0 | L80: 0 | M80: 0 | N80: 0 | O80: 0 | P80: 0
D81: Select your CA PPO Region2Enhanced Life $150,0002-4 | E81: 0 | F81: 0 | G81: 0 | H81: 0 | I81: 0 | J81: 0 | K81: 0 | L81: 0 | M81: 0 | N81: 0 | O81: 0 | P81: 0
E82: 0 | F82: 0 | G82: 0 | H82: 0 | I82: 0 | J82: 0 | K82: 0 | L82: 0 | M82: 0 | N82: 0 | O82: 0 | P82: 0
D83: Region 2Select your SIC LevelStandard Life Amount2-4 | E83: 0 | F83: 0 | G83: 0 | H83: 0 | I83: 0 | J83: 0 | K83: 0 | L83: 0 | M83: 0 | N83: 0 | O83: 0 | P83: 0
D84: Region 2Select your SIC LevelEnhanced Life $50,0002-4 | E84: 0 | F84: 0 | G84: 0 | H84: 0 | I84: 0 | J84: 0 | K84: 0 | L84: 0 | M84: 0 | N84: 0 | O84: 0 | P84: 0
D85: Region 2Select your SIC LevelEnhanced Life $100,0002-4 | E85: 0 | F85: 0 | G85: 0 | H85: 0 | I85: 0 | J85: 0 | K85: 0 | L85: 0 | M85: 0 | N85: 0 | O85: 0 | P85: 0
D86: Region 2Select your SIC LevelEnhanced Life $150,0002-4 | E86: 0 | F86: 0 | G86: 0 | H86: 0 | I86: 0 | J86: 0 | K86: 0 | L86: 0 | M86: 0 | N86: 0 | O86: 0 | P86: 0
E87: 0 | F87: 0 | G87: 0 | H87: 0 | I87: 0 | J87: 0 | K87: 0 | L87: 0 | M87: 0 | N87: 0 | O87: 0 | P87: 0
D88: Region 1Select your SIC LevelStandard Life Amount2-4 | E88: 0 | F88: 0 | G88: 0 | H88: 0 | I88: 0 | J88: 0 | K88: 0 | L88: 0 | M88: 0 | N88: 0 | O88: 0 | P88: 0
D89: Region 1Select your SIC LevelEnhanced Life $50,0002-4 | E89: 0 | F89: 0 | G89: 0 | H89: 0 | I89: 0 | J89: 0 | K89: 0 | L89: 0 | M89: 0 | N89: 0 | O89: 0 | P89: 0
D90: Region 1Select your SIC LevelEnhanced Life $100,0002-4 | E90: 0 | F90: 0 | G90: 0 | H90: 0 | I90: 0 | J90: 0 | K90: 0 | L90: 0 | M90: 0 | N90: 0 | O90: 0 | P90: 0
D91: Region 1Select your SIC LevelEnhanced Life $150,0002-4 | E91: 0 | F91: 0 | G91: 0 | H91: 0 | I91: 0 | J91: 0 | K91: 0 | L91: 0 | M91: 0 | N91: 0 | O91: 0 | P91: 0
D93: Enhanced Life Rates | E93: GOOD | H93: BETTER | K93: BEST | N93: BETTER PLUS
D94: $50,000 | E94: 9.8 | H94: 8.4 | K94: 7 | N94: 8.4
D95: $100,000 | E95: 23.8 | H95: 22.4 | K95: 21 | N95: 22.4
D96: $150,000 | E96: 37.8 | H96: 36.4 | K96: 35 | N96: 36.4
D98: List_RateTable_HMO | E98: GOOD (2-99) | H98: BETTER (5-99) | K98: BEST (5-99)
D99: Region 1 & 2Standard Life Amount | E99: 27 | F99: 41 | G99: 59 | H99: 31 | I99: 46 | J99: 66 | K99: 35 | L99: 50 | M99: 73
D100: Region 3Standard Life Amount | E100: 29 | F100: 45 | G100: 65 | H100: 33 | I100: 50 | J100: 73 | K100: 37 | L100: 54 | M100: 79
D101: Region 4Standard Life Amount | E101: 31 | F101: 47 | G101: 69 | H101: 35 | I101: 52 | J101: 76 | K101: 39 | L101: 57 | M101: 82
D102: Region 5Standard Life Amount | E102: 71 | F102: 113 | G102: 166 | H102: 75 | I102: 118 | J102: 173 | K102: 78 | L102: 122 | M102: 179
D104: Region 1 & 2Enhanced Life $50,000 | E104: =SUM(E99+$E$94) -> 36.8 | F104: =SUM(F99+$E$94) -> 50.8 | G104: 68.8 | H104: =SUM(H99+$H$94) -> 39.4 | I104: 54.4 | J104: 74.4 | K104: =SUM(K99+$K$94) -> 42 | L104: 57 | M104: 80
D105: Region 3Enhanced Life $50,000 | E105: 38.8 | F105: 54.8 | G105: 74.8 | H105: 41.4 | I105: 58.4 | J105: 81.4 | K105: 44 | L105: 61 | M105: 86
D106: Region 4Enhanced Life $50,000 | E106: 40.8 | F106: 56.8 | G106: 78.8 | H106: 43.4 | I106: 60.4 | J106: 84.4 | K106: 46 | L106: 64 | M106: 89
D107: Region 5Enhanced Life $50,000 | E107: 80.8 | F107: 122.8 | G107: 175.8 | H107: 83.4 | I107: 126.4 | J107: 181.4 | K107: 85 | L107: 129 | M107: 186
D109: Region 1 & 2Enhanced Life $100,000 | E109: =SUM(E99+$E$95) -> 50.8 | F109: 64.8 | G109: 82.8 | H109: =SUM(H99+$H$95) -> 53.4 | I109: 68.4 | J109: 88.4 | K109: =SUM(K99+$K$95) -> 56 | L109: 71 | M109: 94
D110: Region 3Enhanced Life $100,000 | E110: 52.8 | F110: 68.8 | G110: 88.8 | H110: 55.4 | I110: 72.4 | J110: 95.4 | K110: 58 | L110: 75 | M110: 100
D111: Region 4Enhanced Life $100,000 | E111: 54.8 | F111: 70.8 | G111: 92.8 | H111: 57.4 | I111: 74.4 | J111: 98.4 | K111: 60 | L111: 78 | M111: 103
D112: Region 5Enhanced Life $100,000 | E112: 94.8 | F112: 136.8 | G112: 189.8 | H112: 97.4 | I112: 140.4 | J112: 195.4 | K112: 99 | L112: 143 | M112: 200
D114: Region 1 & 2Enhanced Life $150,000 | E114: =SUM(E99+$E$96) -> 64.8 | F114: 78.8 | G114: 96.8 | H114: =SUM(H99+$H$96) -> 67.4 | I114: 82.4 | J114: 102.4 | K114: =SUM(K99+$K$96) -> 70 | L114: 85 | M114: 108
D115: Region 3Enhanced Life $150,000 | E115: 66.8 | F115: 82.8 | G115: 102.8 | H115: 69.4 | I115: 86.4 | J115: 109.4 | K115: 72 | L115: 89 | M115: 114
D116: Region 4Enhanced Life $150,000 | E116: 68.8 | F116: 84.8 | G116: 106.8 | H116: 71.4 | I116: 88.4 | J116: 112.4 | K116: 74 | L116: 92 | M116: 117
D117: Region 5Enhanced Life $150,000 | E117: 108.8 | F117: 150.8 | G117: 203.8 | H117: 111.4 | I117: 154.4 | J117: 209.4 | K117: 113 | L117: 157 | M117: 214
D120: Select your CA DHMO RegionStandard Life Amount | E120: 0 | F120: 0 | G120: 0 | H120: 0 | I120: 0 | J120: 0 | K120: 0 | L120: 0 | M120: 0
D121: Select your CA DHMO RegionEnhanced Life $50,000 | E121: 0 | F121: 0 | G121: 0 | H121: 0 | I121: 0 | J121: 0 | K121: 0 | L121: 0 | M121: 0
D122: Select your CA DHMO RegionEnhanced Life $100,000 | E122: 0 | F122: 0 | G122: 0 | H122: 0 | I122: 0 | J122: 0 | K122: 0 | L122: 0 | M122: 0
D123: Select your CA DHMO RegionEnhanced Life $150,000 | E123: 0 | F123: 0 | G123: 0 | H123: 0 | I123: 0 | J123: 0 | K123: 0 | L123: 0 | M123: 0
